bitfinex-derivatives/quotes_SOLF0:USTF0_20251202
["timestamp","ask_amount","ask_price","bid_price","bid_amount"]
[1764715597282,5.9921347,139.72,139.65,3.0]
[1764715597669,3.01,139.71,139.67,3.0]
[1764715598072,3.05813146,139.7,139.68,0.05254755]
[1764715599968,0.04813146,139.7,139.68,3.19254755]
[1764715600274,3.18813146,139.7,139.68,0.05254755]
[1764715600576,0.04813146,139.7,139.68,3.19254755]
[1764715601281,0.04813146,139.7,139.69,3.14]
[1764715602078,4.71592641,139.73,139.7,3.14]
[1764715602375,4.71592641,139.74,139.7,3.14]
[1764715602681,70.3532294,139.77,139.73,3.14]
[1764715602682,61.44,139.77,139.73,3.14]
[1764715603184,0.04949053,139.76,139.75,3.14]
[1764715613784,0.04949053,139.76,139.74,3.1860824]
[1764715613986,3.18949053,139.76,139.74,3.1860824]
[1764715615088,0.04949053,139.76,139.74,3.1860824]
[1764715616786,3.18949053,139.76,139.74,0.0460824]
[1764715616986,3.14,139.75,139.74,0.0460824]
[1764715617188,3.14,139.74,139.69,3.14]
[1764715617493,3.14,139.73,139.69,3.14]
[1764715618091,0.05021822,139.72,139.7,3.1915422]
[1764715620395,4.73412673,139.72,139.7,3.1915422]
[1764715620594,0.05021822,139.72,139.7,3.1915422]
[1764715621288,4.73412673,139.72,139.7,3.1915422]
[1764715621787,0.05021822,139.72,139.7,3.1915422]
[1764715622296,4.68390851,139.71,139.7,9.6320422]
[1764715622492,0.00390851,139.71,139.7,9.6320422]
[1764715623298,0.05021822,139.72,139.71,3.14]
[1764715624690,0.05021822,139.72,139.71,9.5801]
[1764715628315,8.9132294,139.76,139.73,3.14]
[1764715628911,12.0532294,139.77,139.74,9.5485]
[1764715629413,12.1063457,139.77,139.74,9.59527051]
[1764715629804,0.0531163,139.77,139.76,3.11]
[1764715630604,0.0531163,139.77,139.76,9.5478]
[1764715634513,0.0531163,139.77,139.75,3.11]
[1764715634700,8.9132294,139.76,139.74,0.04677051]
[1764715634907,12.0832294,139.75,139.74,0.04677051]
[1764715635102,64.57,139.75,139.74,0.04677051]
[1764715635405,64.57,139.75,139.69,3.11]
[1764715635406,3.17,139.74,139.69,3.11]
[1764715635606,3.17,139.72,139.69,3.11]
[1764715635915,3.17,139.72,139.69,9.5509]
[1764715636416,3.2236197,139.72,139.69,9.59722446]
[1764715636813,3.2236197,139.72,139.69,3.15632446]
[1764715643515,9.6632197,139.72,139.69,0.04632446]
[1764715643720,3.17,139.71,139.69,0.04632446]
[1764715646119,12.08602202,139.71,139.69,0.04632446]
[1764715646319,3.17,139.7,139.69,0.04632446]
[1764715647018,9.6105,139.7,139.69,0.04632446]
[1764715647918,3.17,139.7,139.69,0.04632446]
[1764715648321,64.57,139.7,139.69,0.04632446]
[1764715649726,61.4,139.7,139.69,3.15632446]
[1764715650026,3.2236197,139.72,139.7,3.11]
[1764715650221,0.0536197,139.72,139.7,3.11]
[1764715650623,0.0536197,139.72,139.7,9.5505]
[1764715650818,0.0536197,139.72,139.71,3.11]
[1764715651423,0.0536197,139.72,139.71,4.55]
[1764715653518,0.0536197,139.72,139.71,10.9901]
[1764715655731,0.0536197,139.72,139.71,9.5501]
[1764715655933,7.93494613,139.72,139.69,3.15632446]
[1764715656126,7.88132643,139.71,139.69,0.04632446]
[1764715656331,7.88132643,139.7,139.69,0.04632446]
[1764715656524,4.71132643,139.7,139.69,0.04632446]
[1764715657832,4.71132643,139.7,139.69,6.48732446]
[1764715658333,4.71132643,139.7,139.69,9.54732446]
[1764715661236,7.88132643,139.7,139.69,6.48732446]
[1764715662436,7.88132643,139.7,139.69,0.04632446]
[1764715663426,4.71132643,139.7,139.69,0.04632446]
[1764715664333,4.71132643,139.7,139.69,3.29632446]
[1764715665843,4.71132643,139.7,139.69,9.73732446]
[1764715668239,2.4007981,139.7,139.69,9.73732446]
[1764715668435,0.0536197,139.72,139.71,9.6901]
[1764715669145,3.17,139.77,139.75,9.6878]
[1764715669445,8.91602202,139.78,139.75,3.25]
[1764715669634,12.08602202,139.78,139.75,3.25]
[1764715670029,12.08602202,139.78,139.75,3.2988758]
[1764715670243,12.13210687,139.78,139.75,3.2988758]
[1764715670648,3.21608485,139.78,139.76,6.4378]
[1764715670847,0.04608485,139.78,139.77,3.25]
[1764715671346,0.04608485,139.78,139.76,9.6878]
[1764715672041,0.04608485,139.78,139.77,3.25]
[1764715674648,12.08602202,139.83,139.8,3.25]
[1764715675545,3.17,139.83,139.8,9.6857]
[1764715675751,0.03019565,139.83,139.81,3.25]
[1764715678142,0.03019565,139.83,139.81,9.6853]
[1764715679248,0.03019565,139.83,139.82,3.25]
[1764715682651,3.20019565,139.83,139.8,3.29558515]
[1764715683850,3.20019565,139.83,139.8,0.04558515]
[1764715684250,7.86314885,139.83,139.8,0.04558515]
[1764715684456,3.17,139.81,139.8,0.04558515]
[1764715684855,9.6052,139.82,139.8,0.04558515]
[1764715685153,3.17,139.81,139.8,0.04558515]
[1764715686755,3.17,139.81,139.77,3.25]
[1764715687655,3.17,139.8,139.78,0.04524142]
[1764715688148,9.6061,139.8,139.78,0.04524142]
[1764715688343,6.4361,139.8,139.78,0.04524142]
[1764715688542,3.17,139.79,139.78,0.04524142]
[1764715693859,3.18,139.79,139.78,0.04524142]
[1764715708369,3.23491669,139.8,139.78,0.04524142]
[1764715712069,12.15093871,139.8,139.78,0.04524142]
[1764715712466,3.18,139.79,139.78,0.04524142]
[1764715713569,12.09602202,139.79,139.78,0.04524142]
[1764715719274,3.18,139.79,139.78,0.04524142]
[1764715723585,0.05491669,139.8,139.78,3.18524142]
[1764715724681,0.05491669,139.8,139.79,3.14]
[1764715725289,0.05491669,139.8,139.79,4.58]
[1764715725584,16.51401585,139.84,139.81,3.14]
[1764715725585,8.91602202,139.84,139.81,3.14]
[1764715726684,0.02086411,139.84,139.83,3.14]
[1764715727083,0.02086411,139.84,139.83,4.58]
[1764715727289,8.91602202,139.88,139.85,3.14]
[1764715727591,16.51401585,139.89,139.85,3.14]
[1764715727592,8.91602202,139.87,139.85,3.14]
[1764715727788,12.06602202,139.87,139.85,3.14]
[1764715727996,3.15,139.86,139.83,3.14]
[1764715728192,12.06602202,139.86,139.82,9.5749]
[1764715728491,3.15,139.85,139.83,0.05242033]
[1764715729586,12.06602202,139.85,139.83,0.05242033]
[1764715729786,3.15,139.84,139.83,0.05242033]
[1764715744411,12.06602202,139.86,139.83,3.19242033]
[1764715745316,12.06602202,139.86,139.84,6.434]
[1764715745612,12.06602202,139.86,139.84,9.574]
[1764715745613,3.15,139.86,139.84,9.574]
[1764715746014,3.15,139.87,139.85,6.4336]
[1764715746203,3.15,139.88,139.85,9.5736]
[1764715747005,3.15,139.88,139.85,6.4336]
[1764715750609,12.06602202,139.88,139.85,6.4336]
[1764715750808,3.0,139.87,139.85,6.4336]
[1764715752715,3.0,139.87,139.86,6.4332]
[1764715753809,3.0,139.87,139.84,3.0]
[1764715755022,3.0,139.87,139.86,6.4332]
[1764715756107,8.91602202,139.89,139.87,6.4326]
[1764715756312,11.91602202,139.9,139.87,3.04787428]
[1764715757317,3.0,139.89,139.87,3.04787428]
[1764715757715,3.0,139.89,139.88,6.4322]
[1764715761411,3.0,139.89,139.87,0.04787428]
[1764715761617,3.0,139.88,139.87,0.04787428]
[1764715762626,3.0,139.86,139.8,3.0]
[1764715762829,3.0,139.85,139.8,3.0]
[1764715763631,3.047478,139.84,139.83,6.4345]
[1764715764935,3.047478,139.84,139.81,9.48088926]
[1764715765823,3.047478,139.84,139.82,6.4349]
[1764715766422,0.047478,139.84,139.83,3.0]
[1764715766920,0.047478,139.84,139.82,9.4349]
[1764715767326,3.047478,139.84,139.82,9.4349]
[1764715769532,0.047478,139.84,139.83,3.0]
[1764715772333,0.047478,139.84,139.83,9.4345]
[1764715773726,0.047478,139.84,139.83,10.8745]
[1764715773931,0.047478,139.84,139.83,9.4345]
[1764715787539,8.89504375,139.86,139.85,6.4336]
[1764715787747,8.89504375,139.86,139.85,9.5736]
[1764715790242,8.89504375,139.87,139.86,6.4332]
[1764715791949,8.89504375,139.88,139.87,9.5727]
[1764715793642,4.375e-05,139.88,139.87,9.5727]
[1764715793851,61.26,139.89,139.88,9.5722]
[1764715794048,16.40401585,139.9,139.88,3.14]
[1764715794251,3.04,139.9,139.88,3.14]
[1764715794442,3.04,139.9,139.89,6.4318]
[1764715794644,16.40401585,139.9,139.89,6.4318]
[1764715794950,3.04,139.89,139.87,3.19486664]
[1764715796553,3.04,139.89,139.88,6.4322]
[1764715798348,16.40401585,139.91,139.89,3.14]
[1764715798847,16.40401585,139.91,139.9,6.4313]
[1764715799549,3.04,139.9,139.88,9.5718]
[1764715800149,3.04,139.9,139.88,6.4318]
[1764715801857,3.04,139.9,139.88,9.5718]
[1764715805455,16.40401585,139.91,139.89,3.14]
[1764715805957,3.04,139.9,139.88,9.5718]
[1764715808155,3.04,139.9,139.88,3.14]
[1764715808459,3.04,139.9,139.87,0.05486664]
[1764715808760,3.04,139.9,139.87,3.30486664]
[1764715809157,3.08,139.89,139.87,0.05486664]
[1764715812166,16.44401585,139.89,139.87,0.05486664]
[1764715812466,3.08,139.88,139.87,0.05486664]
[1764715820071,16.44401585,139.88,139.87,0.05486664]
[1764715826676,3.08,139.88,139.87,0.05486664]
[1764715828076,16.45888531,139.88,139.87,0.05486664]
[1764715831173,3.08,139.88,139.87,0.05486664]
[1764715832273,16.4587815,139.88,139.87,0.05486664]
[1764715838477,3.08,139.88,139.87,0.05486664]
[1764715839070,3.08,139.88,139.8,3.02]
[1764715839272,17.29334618,139.91,139.78,3.02]
[1764715839273,12.15869088,139.84,139.78,3.02]
[1764715839570,3.24,139.83,139.78,3.02]
[1764715839975,3.24,139.83,139.81,6.4353]
[1764715840284,3.29245344,139.83,139.81,6.48107335]
[1764715842382,12.21114432,139.83,139.81,6.48107335]
[1764715843087,12.21114432,139.83,139.81,0.04577335]
[1764715844188,3.29245344,139.83,139.81,0.04577335]
[1764715847186,3.29245344,139.83,139.81,6.48117335]
[1764715850389,3.29245344,139.83,139.81,9.50117335]
[1764715851192,3.29245344,139.83,139.81,6.48117335]
[1764715851992,12.21114432,139.83,139.81,6.48117335]
[1764715852986,3.24,139.82,139.81,6.48117335]
[1764715858993,8.97114432,139.83,139.82,3.02]
[1764715859193,0.05245344,139.83,139.82,9.455]
[1764715859590,3.786e-05,139.83,139.82,9.455]
[1764715859788,8.91869088,139.85,139.84,9.4541]
[1764715863403,8.91869088,139.86,139.85,9.4536]
[1764715867104,8.91779578,139.88,139.87,3.02]
[1764715867607,67.45639674,139.93,139.89,1.93]
[1764715867608,10.09803632,139.92,139.89,1.93]
[1764715867811,10.09803632,139.92,139.9,1.93]
[1764715868113,61.24,139.93,139.91,1.93]
[1764715868300,64.48,139.93,139.91,1.93]
[1764715868806,3.24,139.92,139.89,0.04826778]
[1764715874211,2.97,139.91,139.89,0.04826778]
[1764715874613,61.24,139.93,139.83,2.97639674]
[1764715874614,2.97,139.89,139.83,1.93]
[1764715875315,9.4019,139.89,139.84,6.4337]
[1764715875517,2.97,139.88,139.84,8.4037]
[1764715875815,2.97,139.86,139.85,0.04837205]
[1764715881417,2.97,139.84,139.8,1.97]
[1764715881621,2.97,139.84,139.78,4.94639674]
[1764715882016,2.97,139.82,139.79,1.97]
[1764715882416,3.01639044,139.82,139.79,2.01721759]
[1764715888519,3.01639044,139.82,139.79,0.04721759]
[1764715889624,3.01639044,139.82,139.8,1.97]
[1764715890525,3.01639044,139.82,139.79,2.01721759]
[1764715893537,3.01639044,139.82,139.79,0.04721759]
[1764715907051,9.45139044,139.82,139.79,0.04721759]
[1764715907647,3.27,139.81,139.79,0.04721759]
[1764715910143,9.7055,139.81,139.79,0.04721759]
[1764715910344,3.27,139.81,139.71,1.98]
[1764715910645,3.27,139.8,139.71,1.98]
[1764715911146,3.27,139.77,139.73,1.98]
[1764715911356,61.24,139.79,139.74,0.04766457]
[1764715911357,3.27,139.75,139.74,0.04766457]
[1764715916852,0.05086114,139.76,139.74,2.02766457]
[1764715917351,0.05086114,139.76,139.74,8.46616457]
[1764715917556,0.05086114,139.76,139.75,1.98]
[1764715918958,0.05086114,139.76,139.74,6.48616457]
[1764715918959,3.32086114,139.76,139.74,8.46616457]
[1764715919157,0.05086114,139.76,139.74,8.46616457]
[1764715920050,0.05086114,139.76,139.75,1.98]
[1764715935375,3.01,139.8,139.77,1.98]
[1764715936274,3.05612161,139.8,139.77,2.03392076]
[1764715936580,3.05612161,139.8,139.78,6.4368]
[1764715938887,3.05612161,139.8,139.78,8.4168]
[1764715940083,3.05612161,139.8,139.79,6.4364]
[1764715941387,0.04612161,139.8,139.79,8.4164]
[1764715942092,8.89075021,139.84,139.83,6.4345]
[1764715942093,3.01,139.84,139.83,6.4345]
[1764715942285,11.90075021,139.85,139.83,8.4145]
[1764715942485,3.01,139.85,139.83,8.4145]
[1764715942887,3.05686947,139.85,139.83,8.46800818]
[1764715944783,3.05686947,139.85,139.83,6.48800818]
[1764715945094,3.05686947,139.85,139.83,8.46800818]
[1764715945388,3.05686947,139.85,139.83,2.03350818]
[1764715946194,3.05686947,139.85,139.83,8.46800818]
[1764715949684,3.01,139.87,139.84,1.98]
[1764715950293,3.01,139.88,139.84,1.98]
[1764715950494,3.01,139.88,139.86,6.4329]
[1764715950690,3.01,139.88,139.86,8.4129]
[1764715952694,3.01,139.88,139.84,1.98]
[1764715953389,3.01,139.88,139.84,8.414]
[1764715955694,3.01,139.88,139.85,1.99]
[1764715958790,3.01,139.88,139.85,8.4236]
[1764715961010,3.01,139.88,139.86,1.98]
[1764715965302,64.19,139.9,139.87,1.98]
[1764715965500,2.97,139.89,139.87,2.02949599]
[1764715966104,64.19,139.9,139.87,2.02949599]
[1764715966307,61.22,139.9,139.88,1.98]
[1764715967205,61.22,139.9,139.89,1.98]
[1764715970411,2.97,139.92,139.89,1.98]
[1764715972400,11.86075021,139.94,139.9,1.98]
[1764715972607,2.97,139.94,139.92,1.98]
[1764715973512,2.97,139.94,139.91,0.05111432]
[1764715978519,2.97,139.94,139.91,6.48191432]
[1764715978923,2.97,139.94,139.92,1.98]
[1764715979117,2.97,139.94,139.91,8.46191432]
[1764715980220,2.97,139.94,139.91,2.03111432]
[1764715980425,2.97,139.94,139.91,0.05111432]
[1764715981625,2.97,139.94,139.91,6.48191432]
[1764715981823,2.97,139.94,139.91,2.03111432]
[1764715982023,8.89075021,139.97,139.93,101.9953]
[1764715982222,2.97,139.99,139.97,8.4081]
[1764715982526,2.97,139.99,139.97,8.46018612]
[1764715982722,2.97,139.99,139.97,6.48018612]
[1764715983320,2.97,139.99,139.97,0.05208612]
[1764715983824,18.28815021,139.99,139.97,0.05208612]
[1764715984029,2.97,139.98,139.97,0.05208612]
[1764715995238,2.97,139.98,139.91,100.0328]
[1764715995239,2.99,139.96,139.91,2.03]
[1764715995430,2.99,139.95,139.91,2.03]
[1764715995632,2.99,139.95,139.89,2.03]
[1764715996041,2.99,139.94,139.89,8.4617]
[1764715996226,2.99,139.92,139.9,0.05380158]
[1764715996428,0.05407814,139.93,139.9,0.05380158]
[1764715996429,0.05407814,139.93,139.9,2.08380158]
[1764715996641,0.05407814,139.93,139.92,2.03]
[1764715997934,0.05407814,139.93,139.92,3.45]
[1764715998138,2.99,139.99,139.95,2.03]
[1764715998541,2.99,139.99,139.93,8.4597]
[1764715999039,2.99,139.99,139.95,2.08304805]
[1764715999936,2.99,139.99,139.96,2.03]
[1764716000533,2.99,139.99,139.95,0.05304805]
[1764716000848,2.99,139.97,139.95,0.05304805]
[1764716002635,2.99,139.97,139.87,2.08]
[1764716002636,2.99,139.95,139.87,2.08]
[1764716002942,2.99,139.93,139.87,2.08]
[1764716003639,3.04135164,139.91,139.89,0.05198259]
[1764716005939,0.05135164,139.91,139.89,2.13198259]
[1764716006447,3.04135164,139.91,139.89,2.13198259]
[1764716006834,3.04135164,139.91,139.89,0.05198259]
[1764716011354,64.42135164,139.91,139.89,0.05198259]
[1764716011754,2.99,139.9,139.89,0.05198259]
[1764716018568,2.99,139.9,139.82,2.08]
[1764716018768,2.99,139.89,139.82,2.08]
[1764716019069,3.27,139.88,139.82,2.08]
[1764716019568,3.26310155,139.86,139.84,0.04964578]
[1764716020862,3.26310155,139.86,139.84,6.48364578]
[1764716024868,3.26310155,139.86,139.84,0.04964578]
[1764716035086,3.21,139.84,139.79,2.14]
[1764716036075,3.21,139.82,139.8,0.05061358]
[1764716040480,3.21,139.82,139.74,2.19]
[1764716040789,3.21,139.79,139.74,2.19]
[1764716041380,3.21,139.77,139.75,0.05212644]
[1764716041788,3.21,139.77,139.75,6.49032644]
[1764716041984,44.82293127,139.83,139.75,6.49032644]
[1764716042285,65.75646269,139.83,139.75,6.49032644]
[1764716042678,6.436,139.8,139.75,6.49032644]
[1764716043190,0.051606,139.79,139.75,6.49032644]
[1764716044086,3.21,139.78,139.75,6.49032644]
[1764716044688,3.21,139.78,139.75,9.58032644]
[1764716048890,3.21,139.78,139.76,6.4377]
[1764716051578,0.051606,139.79,139.77,3.02]
[1764716052884,0.051606,139.79,139.78,9.4568]
[1764716053080,3.16,139.82,139.79,3.02]
[1764716053290,61.28,139.83,139.81,3.02]
[1764716053895,3.16,139.85,139.83,6.4342]
[1764716054087,3.21221786,139.85,139.83,6.48435674]
[1764716054488,3.21221786,139.85,139.83,9.50435674]
[1764716055699,0.05221786,139.85,139.83,9.50435674]
[1764716056297,3.21221786,139.85,139.83,9.50435674]
[1764716058194,3.21221786,139.85,139.83,6.48435674]
[1764716058894,0.05221786,139.85,139.84,9.4541]
[1764716059095,0.05221786,139.85,139.84,3.02]
[1764716061700,3.16,139.94,139.9,3.02]
[1764716062697,3.20732551,139.93,139.91,6.47635515]
[1764716063002,3.21151929,139.93,139.91,6.47635515]
[1764716063590,3.21151929,139.93,139.91,0.04565515]
[1764716065994,0.05151929,139.93,139.92,6.4304]
[1764716066200,0.05151929,139.93,139.92,9.4504]
[1764716067091,3.16,139.99,139.95,9.4487]
[1764716067995,3.16,139.99,139.96,0.05199655]
[1764716070699,3.16,139.99,139.96,3.07199655]
[1764716071000,21.65312204,140.03,139.96,3.07199655]
[1764716071001,3.16,140.03,139.98,3.02]
[1764716071306,3.16,140.03,140.0,3.02]
[1764716071703,3.16,140.03,140.0,9.4465]
[1764716073203,3.16,140.05,140.01,9.4461]
[1764716073405,3.16,140.05,140.02,3.07077471]
[1764716073601,3.16,140.05,140.02,0.05077471]
[1764716075112,3.16,140.05,140.02,3.03077471]
[1764716075700,3.16,140.05,140.02,9.45637471]
[1764716076005,3.16,140.05,140.02,0.05077471]
[1764716076408,3.16,140.05,140.02,3.03077471]
[1764716077311,3.16,140.05,140.02,0.05077471]
[1764716078509,3.27,140.04,140.02,0.05077471]
[1764716079200,3.03,140.03,140.02,0.05077471]
[1764716079401,3.03,140.03,140.02,0.00077471]
[1764716079700,3.03,140.03,139.97,6.4278]
[1764716079902,3.03,140.02,139.96,3.27]
[1764716080204,3.03,140.0,139.96,3.27]
[1764716080409,3.03,139.99,139.96,3.27]
[1764716080611,3.0795543,139.99,139.97,0.05052274]
[1764716080904,0.0495543,139.99,139.98,3.27]
[1764716083304,0.0495543,139.99,139.97,9.74832274]
[1764716083911,3.0795543,139.99,139.97,0.05052274]
[1764716084312,0.0495543,139.99,139.97,3.32052274]
[1764716085006,0.0495543,139.99,139.97,9.74822274]
[1764716086009,0.0495543,139.99,139.98,3.27]
[1764716089202,0.0495543,139.99,139.97,9.74822274]
[1764716089607,0.0495543,139.99,139.98,3.27]
[1764716090716,0.0495543,139.99,139.97,0.05052274]
[1764716090910,3.0795543,139.99,139.97,0.05052274]
[1764716093510,3.03,139.98,139.92,3.27]
[1764716093721,3.03,139.98,139.9,2.96977485]
[1764716094318,3.03,139.98,139.9,6.23977485]
[1764716094630,3.03,139.94,139.93,0.04950964]
[1764716111625,3.00558787,139.95,139.93,6.47930964]
[1764716113122,3.00558787,139.95,139.93,9.72930964]
[1764716113323,64.26558787,139.95,139.93,9.72930964]
[1764716113721,64.26558787,139.95,139.93,6.47930964]
[1764716115031,64.26558787,139.95,139.93,9.72930964]
[1764716115435,64.26558787,139.95,139.93,3.29950964]
[1764716117133,64.26558787,139.95,139.93,0.04950964]
[1764716118425,2.96,139.94,139.93,0.04950964]
[1764716126732,3.00558787,139.95,139.93,3.29950964]
[1764716127734,3.00558787,139.95,139.93,9.72900964]
[1764716129029,3.00558787,139.95,139.93,6.47900964]
[1764716129738,3.00558787,139.95,139.93,0.04950964]
[1764716130438,3.00558787,139.95,139.93,3.29950964]
[1764716134329,11.8176723,139.95,139.93,3.29950964]
[1764716137345,8.81208443,139.94,139.93,3.29950964]
[1764716139144,12.07208443,139.94,139.93,0.04950964]
[1764716139540,12.07208443,139.94,139.93,3.13950964]
[1764716140541,8.81208443,139.94,139.93,3.13950964]
[1764716141150,8.8576723,139.95,139.93,3.13950964]
[1764716141653,12.1176723,139.95,139.93,3.13950964]
[1764716141853,12.1176723,139.95,139.93,9.56940964]
[1764716144455,8.8576723,139.95,139.94,9.5195]
[1764716144659,0.04558787,139.95,139.94,9.5195]
[1764716149854,3.30558787,139.95,139.93,6.47940964]
[1764716150155,3.30558787,139.95,139.93,9.56940964]
[1764716150852,3.30558787,139.95,139.94,6.4295]
[1764716157654,0.04558787,139.95,139.94,9.5195]
[1764716164770,12.07208443,139.98,139.97,6.4281]
[1764716165766,8.81208443,139.98,139.97,9.5181]
[1764716165971,12.12633474,139.99,139.97,9.5181]
[1764716166272,3.26,139.98,139.97,6.4281]
[1764716169763,11.95633474,139.99,139.97,9.3981]
[1764716171166,3.09,139.98,139.97,6.4281]
[1764716173578,3.09,139.98,139.96,0.04815507]
[1764716173779,11.99912866,139.97,139.96,0.04815507]
[1764716180184,3.09,139.97,139.96,0.04815507]
[1764716180379,12.00343913,139.97,139.96,0.04815507]
[1764716180685,3.09,139.97,139.96,0.04815507]
[1764716180882,12.00371582,139.97,139.96,0.04815507]
[1764716186198,3.09,139.97,139.96,0.04815507]
[1764716188802,12.01051578,139.97,139.96,0.04815507]
[1764716189202,3.09,139.97,139.96,0.04815507]
[1764716191098,12.01122851,139.97,139.96,0.04815507]
[1764716191304,12.01122851,139.97,139.96,9.44675507]
[1764716191502,3.09,139.97,139.96,9.44675507]
[1764716191703,8.92122851,139.98,139.97,9.3981]
[1764716191899,3.14425031,139.99,139.97,2.97]
[1764716192603,3.14425031,139.99,139.98,6.4276]
[1764716195105,3.14425031,139.99,139.98,9.5976]
[1764716195812,0.05425031,139.99,139.98,9.5976]
[1764716213815,3.02425031,139.99,139.98,6.4276]
[1764716221122,3.02425031,139.99,139.98,6.4276]
[1764716222020,0.05425031,139.99,139.98,9.4576]
[1764716223819,0.05425031,139.99,139.98,12.42854074]
[1764716226427,2.97,140.05,140.02,3.03]
[1764716227323,2.97,140.05,140.03,6.4249]
[1764716227524,2.97,140.05,140.03,6.47061575]
[1764716229027,3.23,140.07,140.05,3.27]
[1764716229220,12.15122851,140.09,140.05,3.27]
[1764716229519,3.23,140.08,140.05,3.27]
[1764716230621,3.23,140.08,140.06,6.4238]
[1764716237232,3.23,140.07,140.04,9.6945]
[1764716238328,3.23,140.07,140.05,6.4244]
[1764716247343,3.23,140.07,140.05,9.6944]
[1764716250743,3.23,140.07,140.06,9.694]
[1764716254442,3.23,140.07,140.04,9.4746]
[1764716254646,3.04,140.06,140.04,3.05]
[1764716255145,3.04,140.06,140.04,9.4748]
[1764716256535,3.04,140.06,140.03,0.04571575]
[1764716256847,3.04,140.05,140.03,0.04571575]
[1764716257647,3.04,140.04,140.03,0.04571575]
[1764716257843,11.96122851,140.04,140.03,0.04571575]
[1764716259447,3.04,140.04,140.03,0.04571575]
[1764716259838,11.96122851,140.04,140.03,0.04571575]
[1764716262547,3.04,140.04,140.03,0.04571575]
[1764716263354,11.96122851,140.04,140.03,0.04571575]
[1764716267258,8.92122851,140.04,140.03,3.23571575]
[1764716267458,8.92122851,140.05,140.03,3.23571575]
[1764716270158,11.95122851,140.05,140.03,3.23571575]
[1764716273070,11.95122851,140.05,140.03,9.66101575]
[1764716275068,3.03,140.04,140.03,3.23571575]
[1764716277459,3.03,140.04,140.03,0.04571575]
[1764716277660,3.03,140.04,140.03,3.23571575]
[1764716280170,3.03,140.04,140.03,0.04571575]
[1764716284169,3.03,140.04,139.99,9.6169]
[1764716284374,3.03,140.02,140.0,3.19]
[1764716284771,3.03,140.02,139.99,9.6169]
[1764716285075,3.03,140.02,139.99,3.19]
[1764716285267,3.07717502,140.02,139.99,3.23650824]
[1764716286771,3.03,140.01,139.99,0.04650824]
[1764716287366,64.15,140.01,139.99,0.04650824]
[1764716287676,3.03,140.0,139.99,0.04650824]
[1764716300686,8.96840353,140.02,139.99,9.44360824]
[1764716300893,3.02,140.01,139.99,9.44360824]
[1764716305993,3.02,140.0,139.95,2.97]
[1764716306198,3.02,139.99,139.95,2.97]
[1764716307097,3.06847626,139.98,139.96,0.05379632]
[1764716307300,3.07337897,139.98,139.96,0.05379632]
[1764716307597,3.07337897,139.98,139.96,3.02379632]
[1764716308192,3.07337897,139.98,139.96,9.45229632]
[1764716311103,3.07337897,139.98,139.97,2.97]
[1764716312900,0.05337897,139.98,139.97,9.3981]
[1764716315202,3.20337897,139.98,139.96,0.05379632]
[1764716315402,3.20337897,139.98,139.96,3.15379632]
[1764716317004,3.20337897,139.98,139.96,9.58229632]
[1764716319703,0.05337897,139.98,139.97,9.3981]
[1764716321910,3.08,140.02,140.0,9.3963]
[1764716322906,3.12030429,140.02,140.0,9.44459998]
[1764716330420,0.04030429,140.02,140.01,9.3963]
[1764716331014,3.12030429,140.02,140.01,9.3963]
[1764716332823,0.04030429,140.02,140.01,9.3963]
[1764716353327,19.29767175,140.07,140.05,2.96]
[1764716353541,2.97,140.09,140.05,2.96]
[1764716353835,67.06185037,140.11,140.05,2.96]
[1764716354031,2.97,140.12,140.09,2.96]
[1764716354531,2.97,140.12,140.09,3.01079804]
[1764716355937,2.97,140.1,140.09,0.05079804]
[1764716356536,2.97,140.09,140.02,2.96]
[1764716356740,2.97,140.07,140.02,2.96]
[1764716357446,2.97,140.07,140.04,2.96]